Cogmind - Beta 14 *** ADVENTURER MODE // 2024.08.19 @ 19:18:32 Player: fungoose Result: Self-destructed Performance ------------- Evolutions (1) 500 Regions Visited (2) 400 Robots Destroyed (41) 205 Value Destroyed (981) 981 Prototype IDs (3) 60 Alien Tech Used (0) 0 Bonus (0) 0 TOTAL SCORE: 2146 Bonus ------- None Cogmind --------- Core Integrity 96/400 Matter 289/300 Energy 280/280 System Corruption 2% Temperature Cool (0) Movement Flying (120) Ox1 Location -9/Materials Parts ------- > --- POWER (1) -------- Heavy Ion Engine > --- PROPULSION (3) --- Flight Unit > --- UTILITY (3) ------ Small Storage Unit Weight Redist. System Terrain Scanner > --- WEAPON (2) ------- Heavy Assault Rifle > --- INVENTORY (8) ---- Aluminum Leg Hover Unit Signal Interpreter Shield Generator Shotgun Grenade Launcher Peak State ------------ > --- POWER ------------ Heavy Ion Engine > --- PROPULSION ------- Hover Unit Improved Hover Unit > --- UTILITY ---------- Improved Heat Sink Weight Redist. System Terrain Scanner > --- WEAPON ----------- Small Laser Improved Medium Laser > --- INVENTORY -------- Aluminum Leg Signal Interpreter Light Assault Rifle Grenade Launcher [Rating: 16] Favorites ----------- Power Light Ion Engine Engine Light Ion Engine Propulsion Flight Unit Leg Aluminum Leg Hover Unit Hover Unit Flight Unit Flight Unit Utility Terrain Scanner Device Terrain Scanner Storage Small Storage Unit Protection Utility Shielding Weapon Small Laser Energy Gun Small Laser Energy Cannon Beam Cannon Ballistic Gun Light Assault Rifle Build | -11 -10 -9 ------- Run | Yrd Mat Mat Slots Evolved 2 | . . 2 Power . | . . . Propulsion 1 | . . 1 Utility 1 | . . 1 Weapon . | . . . Parts Attached 39 | 6 15 18 Power 5 | 1 1 3 Engine 5 | 1 1 3 Core . | . . . Reactor . | . . . Propulsion 9 | 2 4 3 Treads . | . . . Leg 2 | 2 . . Wheel . | . . . Hover 2 | . . 2 Flight 5 | . 4 1 Utility 13 | 1 7 5 Device 3 | . 1 2 Storage 5 | 1 1 3 Processor . | . . . Hackware . | . . . Protection 5 | . 5 . Artifact . | . . . Weapon 12 | 2 3 7 Energy Gun 7 | 1 1 5 Energy Cannon 2 | . 2 . Ballistic Gun 3 | 1 . 2 Ballistic Cannon . | . . . Launcher . | . . . Special Weapon . | . . . Impact Weapon . | . . . Slashing Weapon . | . . . Piercing Weapon . | . . . Special Melee Weapon . | . . . Unidentified Prototypes 3 | . . 3 Parts Lost 15 | . 1 14 Power 4 | . . 4 Propulsion 5 | . 1 4 Utility . | . . . Weapon 6 | . . 6 Highest Loss Streak 3 | . 1 3 To Critical Strikes . | . . . Average Slot Usage (%) 78 | . 91 70 Engine 10 | . 13 8 Leg 4 | . 10 . Hover 4 | . . 7 Flight 11 | . 17 7 Device 14 | . 5 20 Storage 5 | . 6 4 Protection 3 | . 8 . Energy Gun 12 | . 14 11 Energy Cannon 5 | . 10 3 Ballistic Gun 5 | . 3 7 Peak Build Rating 16 | 6 7 16 Average Rating 8 | 3 6 10 On Entrance 4 | . 6 7 Naked Turns . | . . . Heaviest Build 23 | 11 16 23 Greatest Support 20 | 20 20 19 Greatest Overweight (x) 3 | . 1 3 Average Overweight (x) . | . . . Largest Inventory Capacity 25 | 8 25 10 Average Capacity 6 | 6 6 6 Most Carried 8 | 3 8 6 Average Carried 4 | . 3 4 Final Capacity 8 | 8 5 8 Final Carried 6 | 1 5 6 Class Distribution -------------------- 98% | Mutant Dominant Class ---------------- Mutant | -10/Materials Mutant | -9/Materials Resources | -11 -10 -9 ----------- Run | Yrd Mat Mat Matter Collected 692 | 162 248 282 Remotely . | . . . Salvage Created 1352 | . 372 980 Parts 78 | . 18 60 Haulers Intercepted 1 | . . 1 Recyclers Shooed 1 | . 1 . Parts Field Recycled . | . . . Retrieved Matter . | . . . Parts Self-Destructed . | . . . Prevented . | . . . Kills | -11 -10 -9 ------- Run | Yrd Mat Mat Combat Hostiles Destroyed 34 | . 11 23 Guns 19 | . 2 17 Cannons 13 | . 8 5 Classes Destroyed 8 | . 3 5 Worker 1 | . . 1 Builder 1 | . . 1 Hauler 1 | . . 1 Recycler 2 | . 1 1 Watcher 2 | . . 2 Swarmer 13 | . 6 7 Grunt 18 | . 5 13 Sentry 3 | . . 3 Best Kill Streak 4 | . 4 4 Combat Bots Only 4 | . 3 4 Max Kills in Single Turn 2 | . 1 2 Gunslinging 1 | . . 1 Exploded . | . . . Melee . | . . . Uniques/NPCs Destroyed . | . . . Combat | -11 -10 -9 -------- Run | Yrd Mat Mat Hostile Shots Fired 235 | . 77 158 Missed 97 | . 34 63 Damage Taken 1212 | . 318 894 Core 372 | . 68 304 Absorbed by Shields . | . . . Ignored by Resistances 372 | . 102 270 Core Remaining (%) 86 | 100 72 . Volleys Fired 111 | . 37 74 Largest 2 | . 2 2 Hottest 116 | . 110 116 Shots Fired 191 | . 58 133 Gun 120 | . 21 99 Cannon 71 | . 37 34 Launcher . | . . . Special . | . . . Kinetic 46 | . . 46 Thermal 145 | . 58 87 Explosive . | . . . Electromagnetic . | . . . Robot Hit Streak 17 | . 13 17 Robot Miss Streak 4 | . 4 3 Penetration Max . | . . . Secondary Targets 1 | . . 1 Max Gunslinging Chain 1 | . . 1 Shots Hit Robots 137 | . 37 100 Core Hits 59 | . 17 42 Critical Kills . | . . . Critical Parts Destroyed . | . . . Critical Strikes 4 | . 1 3 Burn 4 | . 1 3 Melee Attacks . | . . . Impact . | . . . Slashing . | . . . Piercing . | . . . Sneak Attacks . | . . . Combat Hostiles . | . . . Follow-up Attacks . | . . . Damage Inflicted 1992 | . 579 1413 Guns 1134 | . 157 977 Cannons 846 | . 422 424 Explosions . | . . . Melee . | . . . Ramming 12 | . . 12 Kinetic 379 | . . 379 Thermal 1601 | . 579 1022 Explosive . | . . . Electromagnetic . | . . . Impact . | . . . Slashing . | . . . Piercing . | . . . Highest Corruption 2 | . . 2 Average Corruption 2 | . . 2 Corruption Purged . | . . . Corruption Blocked . | . . . Effects 18 | . . 18 Message Errors 4 | . . 4 Matter Fused 6 | . . 6 Heat Flow Errors 2 | . . 2 Energy Discharges 1 | . . 1 Data Loss (minor) 3 | . . 3 Misfires 2 | . . 2 Overload Shots . | . . . Overflow Damage . | . . . Projectiles . | . . . Explosions . | . . . Melee . | . . . Knockbacks . | . . . Impact . | . . . Kinetic . | . . . Secondary . | . . . Self-Inflicted Damage 6 | . . 6 Shots . | . . . Rammed 2 | . . 2 Targets Rammed 2 | . . 2 Kicked . | . . . Crushed . | . . . Highest Temperature 379 | . 379 361 Average Temperature 135 | . 161 107 Received Heat Transfer 570 | . 135 435 Effects 6 | . 3 3 Shutdowns 2 | . 2 . Energy Bleed 1 | . . 1 Interference 2 | . . 2 Short Circuit 1 | . 1 . Siege Activations . | . . . Robots Corrupted . | . . . Combat Hostiles . | . . . Parts Fried . | . . . Impact Corruptions . | . . . Robots Melted 2 | . 1 1 Combat Hostiles 2 | . 1 1 Parts Melted 14 | . 2 12 Heat Transferred 3881 | . 1360 2521 Parts Sabotaged . | . . . Parts Stolen . | . . . Parts Stripped . | . . . Power Chain Reactions . | . . . Alert | -11 -10 -9 ------- Run | Yrd Mat Mat Peak Influence 317 | . 170 317 Initial . | . . . Average 120 | . 84 149 Maximum Alert Level 1 | . . 1 Low Security (%) 82 | 100 100 71 Level 1 17 | . . 28 Level 2 . | . . . Level 3 . | . . . Level 4 . | . . . Level 5 . | . . . High Security . | . . . Max Security . | . . . Squads Dispatched 3 | . . 3 Investigation . | . . . Extermination . | . . . Reinforcement 3 | . . 3 Assault . | . . . Garrison . | . . . Intercept . | . . . Searches Triggered . | . . . Construction Impeded . | . . . Haulers Reinforced . | . . . Active Scanning Responses . | . . . Cargo Convoy Interrupts . | . . . Stealth | -11 -10 -9 --------- Run | Yrd Mat Mat Distress Signals 5 | . 1 4 Communications Jammed . | . . . Distress Signals . | . . . Times Spotted 57 | . 16 41 Peak Tracking Total 6 | . 5 6 Tactical Retreats 5 | . 2 3 Traps | -11 -10 -9 ------- Run | Yrd Mat Mat Traps Triggered 2 | . 2 . Indirectly . | . . . Trap Hack Attempts . | . . . Triggered . | . . . Disarmed . | . . . Reprogrammed . | . . . Reused . | . . . Traps Extracted . | . . . Installed . | . . . Triggered . | . . . Machines | -11 -10 -9 ---------- Run | Yrd Mat Mat Machines Disabled . | . . . Max in Single Turn . | . . . Machines Repaired . | . . . Machines Dismantled . | . . . Machines Sabotaged . | . . . Overloaded Fab Kills . | . . . Hacking | -11 -10 -9 --------- Run | Yrd Mat Mat Machines Accessed 1 | . . 1 Terminals 1 | . . 1 Fabricators . | . . . Repair Stations . | . . . Recycling Units . | . . . Scanalyzers . | . . . Garrison Access . | . . . Total Hacks 1 | . . 1 Successful 1 | . . 1 Failed . | . . . Catastrophic . | . . . Database Lockouts . | . . . Manual . | . . . Terminals 1 | . . 1 Fabricators . | . . . Repair Stations . | . . . Recycling Units . | . . . Scanalyzers . | . . . Garrison Access . | . . . Terminal Hacks 1 | . . 1 Branch Access Points 1 | . . 1 Fabricator Hacks . | . . . Repair Station Hacks . | . . . Recycling Unit Hacks . | . . . Scanalyzer . | . . . Garrison Access Hacks . | . . . Unauthorized Hacks . | . . . Terminals . | . . . Fabricators . | . . . Repair Stations . | . . . Recycling Units . | . . . Scanalyzers . | . . . Garrison Access . | . . . Data Cores Recovered . | . . . Used . | . . . Hacking Detections 1 | . . 1 Full Trace Events . | . . . Feedback Events . | . . . Feedback Blocked . | . . . Robot Schematics Acquired . | . . . Robots Built . | . . . Authchips . | . . . Time . | . . . Total Robot Build Rating . | . . . Part Schematics Acquired . | . . . Parts Built . | . . . Authchips . | . . . Time . | . . . Total Part Build Rating . | . . . Parts Repaired . | . . . Time . | . . . Parts Recycled . | . . . Recycled Matter . | . . . Retrieved Matter . | . . . Retrieved Components . | . . . Parts Scanalyzed . | . . . Part Schematics Acquired . | . . . Parts Damaged . | . . . Bothacking | -11 -10 -9 ------------ Run | Yrd Mat Mat Used RIF Installer . | . . . Robots Hacked . | . . . Non-combat . | . . . Combat . | . . . Robot Hacks Applied . | . . . Relay Couplers Released . | . . . Fabnet Peak Effective % . | . . . Robots Rewired . | . . . Allies Hacked . | . . . Hacks Repelled . | . . . Allies | -11 -10 -9 -------- Run | Yrd Mat Mat Total Allies . | . . . Largest Group . | . . . Highest-Rated Group . | . . . Highest-Rated Ally . | . . . Total Orders . | . . . Ally Attacks . | . . . Total Damage . | . . . Kills . | . . . Allies Corrupted . | . . . Allies Melted . | . . . Intel | -11 -10 -9 ------- Run | Yrd Mat Mat Robot Analysis Total . | . . . Derelict Logs Recovered . | . . . Drone Launches . | . . . Drone Recoveries . | . . . Exploration | -11 -10 -9 ------------- Run | Yrd Mat Mat Turns Passed 2284 | 84 835 1365 Spaces Moved 1972 | 63 850 1059 Core 64 | 7 . 57 Treads . | . . . Legs 269 | 56 213 . Wheels . | . . . Hover 440 | . . 440 Flight 1199 | . 637 562 Fastest Speed 37 | 50 37 37 Average Speed 92 | 112 80 100 Slowest Speed 280 | 120 120 280 Overloaded Moves . | . . . Propulsion Burnouts . | . . . Robots Hopped 1 | . 1 . Cave-ins Triggered . | . . . Exploration Rate (%) 54 | 4 92 68 Regions Visited 2 Branch Regions . Pre-discovered Areas . | . . . Known Exits Taken . | . . . Unknown Exits Taken 2 | 1 1 . Scrap Searched . | . . . Spaces Dug . | . . . Terrain Destroyed . | . . . Melee . | . . . Projectile . | . . . AOE . | . . . Terrain Rammed . | . . . Walls Destroyed . | . . . Machines Disabled . | . . . Actions | -11 -10 -9 --------- Run | Yrd Mat Mat Total 2254 | 77 944 1233 Wait 64 | . 14 50 Move 1968 | 62 847 1059 Hop 1 | . 1 . Pick Up 46 | 8 18 20 Fast Attach . | . . . Attach 36 | 6 12 18 Detach 5 | . 4 1 Swap 6 | . 3 3 Drop 15 | 1 8 6 Fire 111 | . 37 74 Melee . | . . . Ram 2 | . . 2 Kick . | . . . Crush . | . . . Escape Stasis . | . . . Rewire . | . . . Trap . | . . . Miscellaneous . | . . . Route ------- -11/Scrapyard -10/Materials (discovered 5 exits: *Mat x2 / [*Min x2] / [*Sub]) -9/Materials (discovered 3 exits: [*Mat x2] / *Min) History --------- Turn | Location | Event 3 | -11/Scrapyard | Discovered new exit (range 15) 85 | -11/Scrapyard | Entered Materials 156 | -10/Materials | Discovered new exit (range 3) 309 | -10/Materials | Build established: Mutant 452 | -10/Materials | Discovered new exit (range 15) 497 | -10/Materials | Discovered new exit (range 12) 599 | -10/Materials | Discovered new exit (range 4) 787 | -10/Materials | Discovered new exit (range 5) 920 | -10/Materials | Entered another Materials area 920 | -9/Materials | Evolved 2 slots: Propulsion x1, Utility x1 1372 | -9/Materials | Lost 3 parts (2n1w) 1523 | -9/Materials | Discovered new exit (range 10) 1715 | -9/Materials | Discovered new exit (range 7) 1747 | -9/Materials | Identified exit to Mines 1825 | -9/Materials | Core integrity fell below 50% 2285 | -9/Materials | Self-destructed Last Messages --------------- 02144_ Acquired 32 matter. 02145_ K-01 Serf collects debris. 02155_ R-06 Scavenger inserts Lgt. Assault Rifle into recycling unit. 02156_ Recycling unit begins recycling process. 02158_ R-06 Scavenger inserts Aluminum Leg into recycling unit. 02162_ Recycling unit begins recycling process. 02164_ R-06 Scavenger inserts Heat Sink into recycling unit. 02171_ Slammed into U-05 Engineer. 02173_ System corrupted: Component data lost. 02218_ System corrupted: Matter fused (-8). 02277_ K-01 Serf cleans the Terminal. 02282_ O-16 Technician uses terminal to summon reinforcements. 02282_ ALERT: Hostiles spotted, dispatching reinforcements to Terminal M003. 02282_ O-16 Technician locks terminal. 02283_ Lgt. Assault Rifle destroyed. Map ----- +----------------------------------------------------+ | | | | | ????????????????????????????????????? | | ??????????#?????????????????????????? | | ???????#????????????????????????????? | | ????#???????????????????????????????? | | ????????#######?????????????????????? | | #???????# #?????????????????????? | | ######## #?????????????????????? | | T #???????##????????????? | | # ###### #?????????????????????? | | ## #????# #??????#####????????#?? | | ?# #????#######?????##"""##?????????? | | ?# #?#?????????#???##"|||"##????????? | | ?# #################"" ""#????????? | | ?# # / + + #???? ???? | | ?# # # ##### > #??#?????? | | ## # """"""" # #???# #????????? | | # """"""" # #???# #????????? | | + """"""" # ##??## ##????????? | | # """"""" # #????## ##?????? #?? | | ## """"""" # #?????# #????? #?? | | ## # #?????# ##### Y #?? | | ############ #??#??# #?? | | %#?????????## #??# ##?????? | | %############ #??# @ #??????? | | % #??# #??????? | | ##?????? | | Y #??????? | | % r a " """ +?????? | | ##+############ T """ #?????? | | ## #????? o" """ #?????? | | ## " #????? w #?????? | | ## """ #???? k * +?????? | | + "" #??#? ?? #?????? | | ## """ #????? ######+????# #?????? | | ### "" #??????##???????????? #?????? | | ??# """ #??????""???????????? #?????? | | #?# """ #?? ??R? ?????????????????? | | ### """ ## ?????????????????????????? | | ### " #??? ?? ????????????????????? | | #?# ##???????"??????????????????? | | #?# #??""???????????????????????? | | #?#######????????? ? ? ?????????????? | | #######?##??? ?????#????????????????? | | # ######################????????? | | % ##???????? | | ! #????????? | | #????????? | | # ##########+###########? ??????? | +----------------------------------------------------+ Best States ------------- Heat Dissipation 42 Energy Generation 14 Energy Capacity 280 Matter Stores 300 Matter Capacity 300 Sight Range 16 Terrain Scan Range 14 Terrain Scan Density 10 Additional Mass Support 6 Armor Coverage 150 Resistance: KI 20 Resistance: TH 20 Resistance: EX 20 Resistance: EM 20 Resistance: I 20 Resistance: S 20 Resistance: P 20 Utility Shielding 33 Weapon Shielding 33 Evasion (%) 62 Offensive Hacking 10 Item Schematics ----------------- None Robot Schematics ------------------ None Fabricated ------------ Nothing Alien Tech Used ----------------- None Achievements -------------- None Challenges ------------ None Game ------ Seed DiametricEnergyNeutralizer Manual? 0 Play Time 00:25:39 Cumulative 3.1 hours Start 2024.08.10 @ 21:33:58 End 2024.08.19 @ 19:18:32 Sessions 3 Manual Loads 0 Difficulty Adventurer Special Mode None Game No. 5 Rogue 0 Adventurer 5 Explorer 0 Win Type - Total 0 Types 0/0/0/0/0/0/0/0/0 Lore% 0 Gallery% 6 Achievement% 6 Wizard Run 0 Options --------- Layout 1 ASCII 0 Keyboard 0 Movement Arrows Keybinds 0 Fullscreen 1 Font 24/Smallcaps Map View 50x35 Zoom Use 0% Tactical HUD 1 Map Filters NONE Filters NONE Steam 1 RUN: e698c832-8df6-45e3-b469-38a2c5f866ab